fUST/lending_fUST_20250722
["ID","MTS","AMOUNT","RATE_DAILY","PERIOD"]
[374010069,1753180239196,-460.0,0.0001768,2]
[374010070,1753180239205,-986.68,0.0001768,2]
[374010071,1753180239215,-460.0,0.0001768,2]
[374010072,1753180239225,-692.03,0.0001768,2]
[374010073,1753180239234,-262.99,0.0001768,2]
[374010074,1753180239244,-460.0,0.0001768,2]
[374010075,1753180239253,-1802.13,0.00017682,2]
[374010076,1753180239263,-723.84,0.00017682,2]
[374010077,1753180239273,-706.92,0.00017684,2]
[374010078,1753180239282,-2805.68,0.00017684,2]
[374010079,1753180239292,-5663.77431754,0.000179,2]
[374010080,1753180239301,-460.0,0.00017953,2]
[374010081,1753180239311,-523.03,0.00017953,2]
[374010082,1753180239321,-2232.67,0.00017953,2]
[374010083,1753180239342,-953.91,0.00017953,2]
[374010084,1753180239353,-460.0,0.00017953,2]
[374010085,1753180239363,-460.0,0.00017954,2]
[374010086,1753180239374,-3556.47,0.00017954,2]
[374010087,1753180239384,-460.0,0.00017954,2]
[374010088,1753180239395,-481.69,0.00017954,2]
[374010089,1753180239405,-461.42976621,0.00017954,2]
[374010090,1753180239415,-460.0,0.00017954,2]
[374010091,1753180239425,-986.68,0.00017954,2]
[374010092,1753180239435,-460.0,0.00017954,2]
[374010093,1753180239446,-692.03,0.00017954,2]
[374010094,1753180239455,-209.68015387,0.00017954,2]
[374010095,1753180239465,-1802.13,0.00017956,2]
[374010096,1753180239475,-723.84,0.00017956,2]
[374010097,1753180239486,-706.92,0.00017958,2]
[374010098,1753180239496,-2805.68,0.00017958,2]
[374010099,1753180239506,-500.0,0.00017973,2]
[374010100,1753180239516,-194.66974911,0.00018021,2]
[374010101,1753180239526,-500.0,0.00018167,2]
[374010102,1753180239535,-500.0,0.00018167,2]
[374010103,1753180239545,-500.0,0.00018167,2]
[374010104,1753180239556,-500.0,0.00018167,2]
[374010105,1753180239565,-500.0,0.00018167,2]
[374010106,1753180239575,-500.0,0.00018167,2]
[374010107,1753180239585,-500.0,0.00018167,2]
[374010108,1753180239594,-152.23381412,0.00018167,2]
[374010109,1753180239604,-500.0,0.00018167,2]
[374010110,1753180239614,-500.0,0.00018167,2]
[374010111,1753180239623,-5663.77431747,0.00018176,2]
[374010112,1753180239633,-460.0,0.00018227,2]
[374010113,1753180239643,-460.0,0.00018227,2]
[374010114,1753180239653,-1826.65,0.00018227,2]
[374010115,1753180239663,-460.0,0.00018227,2]
[374010116,1753180239672,-460.0,0.00018227,2]
[374010117,1753180239681,-460.0,0.00018227,2]
[374010118,1753180239691,-1131.47,0.00018227,2]
[374010119,1753180239701,-296.08,0.00018227,2]
[374010120,1753180239710,-523.03,0.00018227,2]
[374010121,1753180239719,-2232.67,0.00018227,2]
[374010122,1753180239730,-953.91,0.00018227,2]
[374010123,1753180239740,-460.0,0.00018227,2]
[374010124,1753180239750,-460.0,0.00018228,2]
[374010125,1753180239760,-460.0,0.00018228,2]
[374010126,1753180239771,-460.0,0.00018228,2]
[374010128,1753180239781,-460.0,0.00018228,2]
[374010129,1753180239791,-460.0,0.00018228,2]
[374010130,1753180239800,-460.0,0.00018228,2]
[374010131,1753180239810,-460.0,0.00018228,2]
[374010132,1753180239820,-460.0,0.00018228,2]
[374010134,1753180239830,-460.0,0.00018228,2]
[374010136,1753180239840,-460.0,0.00018228,2]
[374010137,1753180239850,-460.0,0.00018228,2]
[374010138,1753180239860,-460.0,0.00018228,2]
[374010139,1753180239871,-460.0,0.00018228,2]
[374010140,1753180239882,-460.0,0.00018228,2]
[374010142,1753180239891,-460.0,0.00018228,2]
[374010144,1753180239902,-460.0,0.00018228,2]
[374010145,1753180239913,-460.0,0.00018228,2]
[374010146,1753180239923,-460.0,0.00018228,2]
[374010147,1753180239933,-460.0,0.00018228,2]
[374010148,1753180239943,-460.0,0.00018228,2]
[374010149,1753180239954,-388.59109973,0.00018228,2]
[374010150,1753180239963,-460.0,0.00018228,2]
[374010151,1753180239973,-309.12455338,0.00018228,2]
[374010152,1753180239983,-539.15,0.00018228,2]
[374010153,1753180239994,-460.0,0.00018228,2]
[374010155,1753180240005,-460.0,0.00018228,2]
[374010157,1753180240015,-460.0,0.00018228,2]
[374010159,1753180240026,-628.67,0.00018228,2]
[374010162,1753180240036,-460.0,0.00018228,2]
[374010164,1753180240046,-172.41,0.00018228,2]
[374010166,1753180240055,-460.0,0.00018228,2]
[374010167,1753180240065,-460.0,0.00018228,2]
[374010169,1753180240075,-460.0,0.00018228,2]
[374010172,1753180240084,-460.0,0.00018228,2]
[374010173,1753180240094,-460.0,0.00018228,2]
[374010175,1753180240105,-3556.47,0.00018228,2]
[374010178,1753180240115,-460.0,0.00018228,2]
[374010180,1753180240125,-481.69,0.00018228,2]
[374010182,1753180240135,-460.0,0.00018228,2]
[374010184,1753180240144,-986.68,0.00018228,2]
[374010185,1753180240154,-491.48036298,0.00018228,2]
[374010187,1753180240163,-692.03,0.00018228,2]
[374010189,1753180240173,-460.0,0.00018229,2]
[374010191,1753180240182,-460.0,0.00018229,2]
[374010193,1753180240192,-489.5,0.00018229,2]
[374010196,1753180240202,-460.0,0.00018229,2]
[374010197,1753180240211,-460.0,0.00018229,2]
[374010199,1753180240221,-460.0,0.00018229,2]
[374010201,1753180240231,-460.0,0.00018229,2]
[374010204,1753180240243,-460.0,0.00018229,2]
[374010206,1753180240252,-460.0,0.0001823,2]
[374010208,1753180240263,-499.65,0.0001823,2]
[374010209,1753180240272,-1802.13,0.0001823,2]
[374010212,1753180240282,-723.84,0.0001823,2]
[374010213,1753180240292,-1228.66,0.00018232,2]
[374010215,1753180240301,-1453.67,0.00018232,2]
[374010218,1753180240311,-706.92,0.00018232,2]
[374010220,1753180240322,-2805.68,0.00018232,2]
[374010222,1753180240331,-1000.0,0.00018268,2]
[374010224,1753180240341,-526.12808574,0.00018268,2]
[374010226,1753180240350,-500.0,0.00018268,2]
[374010228,1753180240359,-1500.0,0.00018268,2]
[374010230,1753180240369,-1175.54631417,0.00018404,2]
[374010232,1753180240379,-255.0,0.00018412,2]
[374010234,1753180240389,-500.0,0.00018451,2]
[374010236,1753180240399,-5663.77431747,0.00018452,2]
[374010238,1753180240412,-261.38951761,0.00018483,2]
[374010240,1753180240422,-371.88,0.0001849,3]
[374010243,1753180240432,-185.94,0.0001849,3]
[374010245,1753180240442,-557.86,0.0001849,3]
[374010247,1753180240452,-743.76,0.00018494,3]
[374010249,1753180240461,-342.73285446,0.00018499,2]
[374010251,1753180240471,-229.8950136,0.00018499,2]
[374010253,1753180240481,-500.0,0.00018499,2]
[374010255,1753180240491,-234.46945491,0.00018499,2]
[374010257,1753180240501,-500.0,0.00018499,2]
[374010259,1753180240511,-500.0,0.00018499,2]
[374010261,1753180240521,-571.42131389,0.00018499,2]
[374010263,1753180240531,-500.0,0.00018499,2]
[374010276,1753180240648,-500.0,0.00018499,2]
[374010278,1753180240659,-196.18247984,0.00018499,2]
[374010280,1753180240668,-500.0,0.00018499,2]
[374010282,1753180240677,-500.0,0.00018499,2]
[374010284,1753180240687,-500.0,0.00018499,2]
[374010286,1753180240696,-500.0,0.00018499,2]
[374010288,1753180240706,-500.0,0.00018499,2]
[374010290,1753180240715,-500.0,0.00018499,2]
[374010292,1753180240724,-194.1568804,0.00018499,2]
[374010294,1753180240734,-500.0,0.00018499,2]
[374010296,1753180240744,-44742.72566233,0.000185,2]
[374010297,1753180240754,-460.0,0.00018501,2]
[374010300,1753180240763,-460.0,0.00018501,2]
[374010301,1753180240773,-1826.65,0.00018501,2]
[374010303,1753180240782,-439.16934566,0.00018501,2]
[374010305,1753180240791,-460.0,0.00018501,2]
[374010307,1753180240801,-460.0,0.00018501,2]
[374010309,1753180240810,-1131.47,0.00018501,2]
[374010311,1753180240820,-523.03,0.00018501,2]
[374010313,1753180240829,-2232.67,0.00018501,2]
[374010315,1753180240839,-953.91,0.00018501,2]
[374010317,1753180240848,-460.0,0.00018501,2]
[374010319,1753180240857,-460.0,0.00018502,2]
[374010321,1753180240867,-460.0,0.00018502,2]
[374010323,1753180240881,-460.0,0.00018502,2]
[374010325,1753180240890,-314.06,0.00018502,2]
[374010327,1753180240900,-549.89,0.00018502,2]
[374010329,1753180240910,-460.0,0.00018502,2]
[374010332,1753180240921,-460.0,0.00018502,2]
[374010334,1753180240931,-468.02,0.00018502,2]
[374010336,1753180240940,-460.0,0.00018502,2]
[374010338,1753180240951,-460.0,0.00018502,2]
[374010340,1753180240960,-460.0,0.00018502,2]
[374010342,1753180240969,-460.0,0.00018502,2]
[374010344,1753180240979,-460.0,0.00018502,2]
[374010346,1753180240990,-460.0,0.00018502,2]
[374010348,1753180240999,-460.0,0.00018502,2]
[374010350,1753180241009,-460.0,0.00018502,2]
[374010352,1753180241018,-566.77454182,0.00018502,2]
[374010354,1753180241027,-460.0,0.00018502,2]
[374010356,1753180241037,-196.63568455,0.00018502,2]
[374010358,1753180241047,-539.15,0.00018502,2]
[374010360,1753180241056,-460.0,0.00018502,2]
[374010362,1753180241066,-460.0,0.00018502,2]
[374010364,1753180241075,-460.0,0.00018502,2]
[374010366,1753180241085,-628.67,0.00018502,2]
[374010368,1753180241094,-460.0,0.00018502,2]
[374010370,1753180241104,-225.30721199,0.00018502,2]
[374010372,1753180241114,-460.0,0.00018502,2]
[374010374,1753180241123,-460.0,0.00018502,2]
[374010376,1753180241133,-401.9,0.00018502,2]
[374010378,1753180241142,-3556.47,0.00018502,2]
[374010380,1753180241151,-460.0,0.00018502,2]
[374010382,1753180241161,-481.69,0.00018502,2]
[374010384,1753180241170,-460.0,0.00018502,2]
[374010386,1753180241179,-986.68,0.00018502,2]
[374010388,1753180241189,-692.03,0.00018502,2]
[374010390,1753180241198,-460.0,0.00018503,2]
[374010393,1753180241208,-489.5,0.00018503,2]
[374010395,1753180241218,-460.0,0.00018503,2]
[374010397,1753180241227,-476.1090217,0.00018503,2]
[374010399,1753180241237,-460.0,0.00018504,2]
[374010401,1753180241246,-499.65,0.00018504,2]
[374010403,1753180241257,-1802.13,0.00018504,2]
[374010405,1753180241267,-723.84,0.00018504,2]
[374010407,1753180241277,-1228.66,0.00018506,2]
[374010409,1753180241286,-1453.67,0.00018506,2]
[374010411,1753180241296,-706.92,0.00018506,2]
[374010412,1753180241305,-1000.0,0.00018521,2]
[374010414,1753180241315,-500.0,0.00018548,2]
[374010416,1753180241326,-500.0,0.00018548,2]
[374010419,1753180241337,-500.0,0.00018715,2]
[374010420,1753180241346,-500.0,0.00018715,2]
[374010422,1753180241356,-1000.0,0.00018715,2]
[374010424,1753180241365,-500.0,0.00018715,2]
[374010426,1753180241375,-1000.0,0.00018715,2]
[374010429,1753180241385,-500.0,0.00018715,2]
[374010431,1753180241395,-1094.36062447,0.00018715,2]
[374010432,1753180241404,-500.0,0.00018715,2]
[374010434,1753180241414,-503.68372735,0.00018715,2]
[374010436,1753180241423,-5663.77431747,0.00018728,2]
[374010439,1753180241433,-460.0,0.00018775,2]
[374010440,1753180241444,-460.0,0.00018775,2]
[374010443,1753180241455,-1826.65,0.00018775,2]
[374010445,1753180241464,-573.01,0.00018775,2]
[374010447,1753180241474,-555.61,0.00018775,2]
[374010449,1753180241484,-1131.47,0.00018775,2]
[374010451,1753180241494,-523.03,0.00018775,2]
[374010452,1753180241503,-2232.67,0.00018775,2]
[374010455,1753180241513,-953.91,0.00018775,2]
[374010457,1753180241523,-460.0,0.00018775,2]
[374010459,1753180241533,-460.0,0.00018776,2]
[374010461,1753180241543,-316.3,0.00018776,2]
[374010462,1753180241552,-373.48745849,0.00018776,2]
[374010465,1753180241562,-397.89835768,0.00018776,2]
[374010467,1753180241572,-460.0,0.00018776,2]
[374010468,1753180241581,-460.0,0.00018776,2]
[374010470,1753180241590,-460.0,0.00018776,2]
[374010472,1753180241600,-460.0,0.00018776,2]
[374010474,1753180241609,-460.0,0.00018776,2]
[374010476,1753180241618,-460.0,0.00018776,2]
[374010478,1753180241627,-460.0,0.00018776,2]
[374010480,1753180241637,-460.0,0.00018776,2]
[374010482,1753180241647,-460.0,0.00018776,2]
[374010484,1753180241657,-539.15,0.00018776,2]
[374010486,1753180241666,-460.0,0.00018776,2]
[374010488,1753180241676,-460.0,0.00018776,2]
[374010490,1753180241685,-628.67,0.00018776,2]
[374010492,1753180241694,-462.8,0.00018776,2]
[374010494,1753180241704,-460.0,0.00018776,2]
[374010496,1753180241714,-390.65392384,0.00018776,2]
[374010498,1753180241723,-3556.47,0.00018776,2]
[374010500,1753180241732,-481.69,0.00018776,2]
[374010502,1753180241743,-460.0,0.00018776,2]
[374010504,1753180241753,-986.68,0.00018776,2]
[374010506,1753180241762,-692.03,0.00018776,2]
[374010508,1753180241772,-460.0,0.00018777,2]
[374010510,1753180241781,-489.5,0.00018777,2]
[374010512,1753180241791,-460.0,0.00018777,2]
[374010514,1753180241800,-499.65,0.00018778,2]
[374010516,1753180241810,-1802.13,0.00018778,2]
[374010518,1753180241819,-723.84,0.00018778,2]
[374010520,1753180241829,-1228.66,0.0001878,2]
[374010522,1753180241839,-1453.67,0.0001878,2]
[374010524,1753180241849,-706.92,0.0001878,2]
[374010526,1753180241858,-500.0,0.00018818,2]
[374010528,1753180241868,-500.0,0.00018846,2]
[374010530,1753180241880,-160.0,0.00018849,2]
[374010532,1753180241890,-160.0,0.00018849,2]
[374010534,1753180241900,-160.0,0.00018849,2]
[374010536,1753180241911,-160.0,0.00018849,2]
[374010538,1753180241920,-221.23383675,0.00018877,3]
[374010540,1753180241929,-1968.39682274,0.000189,2]
[374010542,1753180241939,-574.09510972,0.00018951,2]
[374010544,1753180241949,-460.0,0.00018951,2]
[374010546,1753180241958,-460.0,0.00018951,2]
[374010548,1753180241967,-539.96268388,0.00018951,2]
[374010550,1753180241977,-462.36033899,0.00018951,2]
[374010552,1753180241986,-460.0,0.00018951,2]
[374010554,1753180241995,-460.0,0.00018951,2]
[374010556,1753180242005,-462.31238432,0.00018951,2]
[374010558,1753180242014,-460.0,0.00018951,2]
[374010560,1753180242023,-563.36,0.00018951,2]
[374010562,1753180242032,-1175.54631417,0.00018951,2]
[374010564,1753180242041,-1330.93779917,0.00019,5]
[374010566,1753180242051,-5663.77431747,0.00019003,2]
[374010568,1753180242060,-460.0,0.00019049,2]
[374010570,1753180242069,-460.0,0.00019049,2]
[374010572,1753180242079,-1826.65,0.00019049,2]
[374010574,1753180242089,-1131.47,0.00019049,2]
[374010576,1753180242098,-523.03,0.00019049,2]
[374010578,1753180242107,-2232.67,0.00019049,2]
[374010580,1753180242117,-953.91,0.00019049,2]
[374010582,1753180242126,-460.0,0.00019049,2]
[374010584,1753180242135,-460.0,0.0001905,2]
[374010586,1753180242144,-191.24,0.0001905,2]
[374010587,1753180242154,-460.0,0.0001905,2]
[374010590,1753180242164,-460.0,0.0001905,2]
[374010592,1753180242174,-460.0,0.0001905,2]
[374010601,1753180242261,-460.0,0.0001905,2]
[374010603,1753180242272,-460.0,0.0001905,2]
[374010605,1753180242281,-460.0,0.0001905,2]
[374010607,1753180242291,-539.15,0.0001905,2]
[374010609,1753180242300,-460.0,0.0001905,2]
[374010611,1753180242311,-460.0,0.0001905,2]
[374010613,1753180242322,-628.67,0.0001905,2]
[374010615,1753180242331,-460.0,0.0001905,2]
[374010617,1753180242340,-3556.47,0.0001905,2]
[374010619,1753180242350,-481.69,0.0001905,2]
[374010621,1753180242359,-460.0,0.0001905,2]
[374010623,1753180242368,-986.68,0.0001905,2]
[374010625,1753180242378,-692.03,0.0001905,2]
[374010627,1753180242388,-460.0,0.00019051,2]
[374010629,1753180242397,-489.5,0.00019051,2]
[374010631,1753180242406,-460.0,0.00019051,2]
[374010633,1753180242416,-499.65,0.00019052,2]
[374010635,1753180242425,-1802.13,0.00019052,2]
[374010637,1753180242434,-723.84,0.00019052,2]
[374010638,1753180242443,-500.0,0.00019053,2]
[374010640,1753180242452,-1228.66,0.00019054,2]
[374010642,1753180242461,-1453.67,0.00019054,2]
[374010644,1753180242471,-706.92,0.00019054,2]
[374010646,1753180242480,-1500.0,0.00019068,2]
[374010648,1753180242491,-160.0,0.00019077,2]
[374010650,1753180242501,-12619.94447631,0.00019077,2]
[374010652,1753180242511,-160.0,0.00019077,2]
[374010654,1753180242520,-214.6393183,0.00019077,2]
[374010656,1753180242530,-160.0,0.00019077,2]
[374010658,1753180242539,-215.80012421,0.00019077,2]
[374010660,1753180242548,-160.0,0.00019077,2]
[374010662,1753180242558,-160.0,0.00019077,2]
[374010664,1753180242567,-476.60259688,0.00019077,2]
[374010666,1753180242576,-839.90542673,0.00019077,2]
[374010668,1753180242586,-526.07605158,0.00019077,2]
[374010670,1753180242596,-231.06963584,0.00019077,2]
[374010672,1753180242605,-500.0,0.00019085,2]
[374010674,1753180242615,-500.0,0.00019096,2]
[374010676,1753180242624,-500.0,0.00019096,2]
[374010678,1753180242633,-666.0,0.00019178,2]
[374010680,1753180242643,-339.183509,0.00019178,2]
[374010682,1753180242652,-465.66943416,0.00019225,2]
[374010685,1753180242661,-220.67052801,0.00019225,2]
[374010688,1753180242670,-460.0,0.00019225,2]
[374010690,1753180242679,-563.36,0.00019225,2]
[374010692,1753180242688,-500.0,0.0001924,2]
[374010694,1753180242697,-347.83318823,0.0001924,2]
[374010696,1753180242707,-500.0,0.0001924,2]
[374010698,1753180242717,-1500.0,0.00019263,2]
[374010699,1753180242726,-5663.77431747,0.00019279,2]
[374010701,1753180242736,-460.0,0.00019323,2]
[374010703,1753180242745,-460.0,0.00019323,2]
[374010705,1753180242754,-1826.65,0.00019323,2]
[374010707,1753180242763,-1131.47,0.00019323,2]
[374010709,1753180242773,-523.03,0.00019323,2]
[374010711,1753180242783,-2232.67,0.00019323,2]
[374010713,1753180242792,-953.91,0.00019323,2]
[374010715,1753180242801,-460.0,0.00019323,2]
[374010717,1753180242812,-460.0,0.00019324,2]
[374010719,1753180242821,-460.0,0.00019324,2]
[374010721,1753180242831,-460.0,0.00019324,2]
[374010723,1753180242840,-460.0,0.00019324,2]
[374010725,1753180242849,-460.0,0.00019324,2]
[374010728,1753180242859,-460.0,0.00019324,2]
[374010731,1753180242873,-460.0,0.00019324,2]
[374010734,1753180242882,-539.15,0.00019324,2]
[374010737,1753180242891,-460.0,0.00019324,2]
[374010739,1753180242900,-460.0,0.00019324,2]
[374010742,1753180242911,-628.67,0.00019324,2]
[374010745,1753180242920,-460.0,0.00019324,2]
[374010748,1753180242930,-3556.47,0.00019324,2]
[374010749,1753180242939,-481.69,0.00019324,2]
[374010751,1753180242950,-460.0,0.00019324,2]
[374010755,1753180242960,-986.68,0.00019324,2]
[374010756,1753180242969,-692.03,0.00019324,2]
[374010759,1753180242979,-460.0,0.00019325,2]
[374010761,1753180242989,-489.5,0.00019325,2]
[374010763,1753180242999,-499.65,0.00019326,2]
[374010765,1753180243008,-1802.13,0.00019326,2]
[374010767,1753180243018,-723.84,0.00019326,2]
[374010768,1753180243027,-160.0,0.00019326,2]
[374010770,1753180243037,-1228.66,0.00019328,2]
[374010772,1753180243047,-1453.67,0.00019328,2]
[374010774,1753180243056,-706.92,0.00019328,2]
[374010776,1753180243065,-151.0,0.00019329,2]
[374010778,1753180243075,-151.0,0.00019329,2]
[374010780,1753180243084,-151.0,0.00019329,2]
[374010782,1753180243094,-151.0,0.00019329,2]
[374010784,1753180243103,-151.0,0.00019329,2]
[374010786,1753180243112,-151.0,0.00019329,2]
[374010788,1753180243123,-151.198995,0.00019329,2]
[374010789,1753180243132,-1114.386798,0.00019329,2]
[374010791,1753180243141,-1114.386798,0.00019329,2]
[374010793,1753180243151,-151.0,0.00019329,2]
[374010795,1753180243160,-151.0,0.00019329,2]
[374010797,1753180243169,-100000.0,0.00019329,2]
[374010799,1753180243178,-500.0,0.00019373,2]
[374010801,1753180243188,-500.4670742,0.00019373,2]
[374010803,1753180243197,-500.0,0.00019373,2]
[374010805,1753180243206,-374.63540786,0.00019373,2]
[374010806,1753180243215,-500.40940972,0.00019373,2]
[374010808,1753180243224,-158.2507302,0.00019373,2]
[374010810,1753180243234,-158.64689627,0.00019373,2]
[374010812,1753180243245,-160.06534133,0.00019373,2]
[374010815,1753180243267,-500.69980759,0.00019373,2]
[374010817,1753180243277,-500.0,0.00019373,2]
[374010819,1753180243287,-158.25297307,0.00019373,2]
[374010821,1753180243296,-500.0,0.00019373,2]
[374010823,1753180243307,-158.2508833,0.00019373,2]
[374010825,1753180243317,-500.0,0.00019373,2]
[374010827,1753180243327,-500.59816244,0.00019373,2]
[374010829,1753180243337,-500.0,0.00019373,2]
[374010831,1753180243346,-500.0,0.00019373,2]
[374010833,1753180243356,-550.05247177,0.00019416,2]
[374010835,1753180243366,-500.98396891,0.00019416,2]
[374010837,1753180243376,-460.0,0.00019499,2]
[374010839,1753180243385,-563.36,0.00019499,2]
[374010841,1753180243395,-5663.77431747,0.00019555,2]
[374010843,1753180243404,-460.0,0.00019597,2]
[374010845,1753180243414,-150.34,0.00019597,2]
[374010847,1753180243423,-1826.65,0.00019597,2]
[374010849,1753180243433,-1131.47,0.00019597,2]
[374010851,1753180243442,-523.03,0.00019597,2]
[374010853,1753180243453,-2232.67,0.00019597,2]
[374010855,1753180243463,-953.91,0.00019597,2]
[374010856,1753180243473,-460.0,0.00019597,2]
[374010858,1753180243483,-460.0,0.00019598,2]
[374010860,1753180243494,-510.64774941,0.00019598,2]
[374010862,1753180243504,-460.0,0.00019598,2]
[374010864,1753180243513,-460.0,0.00019598,2]
[374010866,1753180243523,-460.0,0.00019598,2]
[374010868,1753180243534,-460.0,0.00019598,2]
[374010870,1753180243544,-460.0,0.00019598,2]
[374010872,1753180243554,-539.15,0.00019598,2]
[374010875,1753180243565,-460.0,0.00019598,2]
[374010878,1753180243574,-425.06,0.00019598,2]
[374010881,1753180243584,-628.67,0.00019598,2]
[374010883,1753180243594,-460.0,0.00019598,2]
[374010885,1753180243603,-3556.47,0.00019598,2]
[374010887,1753180243612,-481.69,0.00019598,2]
[374010889,1753180243622,-460.0,0.00019598,2]
[374010891,1753180243632,-986.68,0.00019598,2]
[374010893,1753180243642,-692.03,0.00019598,2]
[374010895,1753180243651,-460.0,0.00019599,2]
[374010897,1753180243661,-489.5,0.00019599,2]
[374010899,1753180243674,-499.65,0.000196,2]
[374010910,1753180243789,-1802.13,0.000196,2]
[374010912,1753180243799,-723.84,0.000196,2]
[374010914,1753180243809,-1228.66,0.00019602,2]
[374010915,1753180243818,-1453.67,0.00019602,2]
[374010916,1753180243827,-706.92,0.00019602,2]
[374010917,1753180243836,-500.0,0.00019616,2]
[374010918,1753180243845,-3343.58847136,0.0001969,2]
[374010919,1753180243858,-460.0,0.00019773,2]
[374010920,1753180243869,-563.36,0.00019773,2]
[374010921,1753180243880,-292.58580708,0.00019788,2]
[374010922,1753180243889,-500.0,0.00019808,2]
[374010923,1753180243899,-500.0,0.00019811,2]
[374010924,1753180243908,-5663.77431747,0.00019831,2]
[374010925,1753180243918,-743.76,0.0001986,3]
[374010926,1753180243928,-371.88,0.0001986,3]
[374010927,1753180243937,-1487.52,0.00019864,3]
[374010928,1753180243949,-460.0,0.00019871,2]
[374010929,1753180243958,-1826.65,0.00019871,2]
[374010930,1753180243967,-1131.47,0.00019871,2]
[374010931,1753180243976,-523.03,0.00019871,2]
[374010932,1753180243986,-2232.67,0.00019871,2]
[374010933,1753180243996,-953.91,0.00019871,2]
[374010934,1753180244005,-460.0,0.00019871,2]
[374010935,1753180244015,-460.0,0.00019872,2]
[374010936,1753180244025,-460.0,0.00019872,2]
[374010937,1753180244034,-460.0,0.00019872,2]
[374010938,1753180244044,-460.0,0.00019872,2]
[374010939,1753180244053,-460.0,0.00019872,2]
[374010940,1753180244062,-460.0,0.00019872,2]
[374010941,1753180244071,-539.15,0.00019872,2]
[374010942,1753180244080,-460.0,0.00019872,2]
[374010943,1753180244089,-628.67,0.00019872,2]
[374010945,1753180244099,-460.0,0.00019872,2]
[374010946,1753180244108,-3556.47,0.00019872,2]
[374010948,1753180244117,-481.69,0.00019872,2]
[374010950,1753180244127,-460.0,0.00019872,2]
[374010952,1753180244136,-986.68,0.00019872,2]
[374010954,1753180244146,-692.03,0.00019872,2]
[374010956,1753180244156,-460.0,0.00019873,2]
[374010958,1753180244165,-489.5,0.00019873,2]
[374010960,1753180244175,-500.0,0.00019874,2]
[374010962,1753180244185,-499.65,0.00019874,2]
[374010964,1753180244194,-1802.13,0.00019874,2]
[374010966,1753180244203,-723.84,0.00019874,2]
[374010968,1753180244213,-260.0,0.00019874,2]
[374010970,1753180244222,-1228.66,0.00019876,2]
[374010972,1753180244232,-1453.67,0.00019876,2]
[374010974,1753180244242,-706.92,0.00019876,2]
[374010976,1753180244251,-500.0,0.00019921,2]
[374010978,1753180244260,-500.0,0.00019921,2]
[374010980,1753180244270,-35850.79696441,0.0002,2]
[374010982,1753180244280,-72599.65487824,0.0002,2]
[374010984,1753180244290,-460.0,0.00020047,2]
[374010986,1753180244299,-563.36,0.00020047,2]
[374010988,1753180244309,-5663.77431747,0.00020107,2]
[374010990,1753180244321,-460.0,0.00020145,2]
[374010992,1753180244330,-1826.65,0.00020145,2]
[374010994,1753180244340,-1131.47,0.00020145,2]
[374010996,1753180244349,-523.03,0.00020145,2]
[374010998,1753180244358,-2232.67,0.00020145,2]
[374011000,1753180244368,-953.91,0.00020145,2]